[Event "*** Titled Tuesday Blitz"]
[Site "Chess.com"]
[Date "2020.04.28"]
[Round "4"]
[White "VALPARAISO37"]
[Black "GianmarcoVaR"]
[Result "0-1"]
[WhiteElo "2360"]
[BlackElo "2562"]
[TimeControl "180+1"]
[EndTime "10:39:18 PDT"]
[Termination "GianmarcoVaR won on time"]

1. d4 {[%clk 0:03:00.9]} 1... Nf6 {[%clk 0:02:56.2]} 2. c4 {[%clk 0:03:00.7]}
2... e6 {[%clk 0:02:56.4]} 3. Nc3 {[%clk 0:03:00]} 3... Bb4 {[%clk 0:02:56]} 4.
a3 {[%clk 0:03:00.6]} 4... Bxc3+ {[%clk 0:02:55.5]} 5. bxc3 {[%clk 0:03:01.3]}
5... O-O {[%clk 0:02:55.4]} 6. e3 {[%clk 0:03:01.5]} 6... c5 {[%clk 0:02:53.7]}
7. Bd3 {[%clk 0:03:01.2]} 7... Nc6 {[%clk 0:02:51.7]} 8. Nf3 {[%clk 0:02:59.4]}
8... d6 {[%clk 0:02:51.4]} 9. e4 {[%clk 0:02:56.5]} 9... e5 {[%clk 0:02:51.2]}
10. d5 {[%clk 0:02:56.2]} 10... Ne7 {[%clk 0:02:48.9]} 11. O-O {[%clk 0:02:53]}
11... h6 {[%clk 0:02:44.3]} 12. Ne1 {[%clk 0:02:50.8]} 12... Nh7 {[%clk
0:02:43.1]} 13. f4 {[%clk 0:02:48.7]} 13... exf4 {[%clk 0:02:43.1]} 14. Bxf4
{[%clk 0:02:47.3]} 14... Ng6 {[%clk 0:02:41.7]} 15. Bg3 {[%clk 0:02:47.7]} 15...
Qe7 {[%clk 0:02:36.6]} 16. Rb1 {[%clk 0:02:39.6]} 16... Nf6 {[%clk 0:02:33.4]}
17. h3 {[%clk 0:02:36.6]} 17... Nd7 {[%clk 0:02:27.3]} 18. Nf3 {[%clk
0:02:31.9]} 18... Nde5 {[%clk 0:02:27.5]} 19. Nxe5 {[%clk 0:02:20.2]} 19... Nxe5
{[%clk 0:02:28.4]} 20. Kh2 {[%clk 0:02:18.2]} 20... b6 {[%clk 0:02:24.4]} 21. a4
{[%clk 0:02:13.6]} 21... Ba6 {[%clk 0:02:24.3]} 22. Qe2 {[%clk 0:02:13.4]} 22...
Rfe8 {[%clk 0:02:19.5]} 23. a5 {[%clk 0:01:53.9]} 23... bxa5 {[%clk 0:02:19.1]}
24. Ra1 {[%clk 0:01:50.5]} 24... Nxd3 {[%clk 0:02:01.4]} 25. Qxd3 {[%clk
0:01:50.1]} 25... Qxe4 {[%clk 0:02:02]} 26. Qxe4 {[%clk 0:01:50.1]} 26... Rxe4
{[%clk 0:02:02.6]} 27. Bxd6 {[%clk 0:01:50.1]} 27... Bxc4 {[%clk 0:01:57.7]} 28.
Rfd1 {[%clk 0:01:50]} 28... Bb3 {[%clk 0:01:53.2]} 29. Rd2 {[%clk 0:01:47.3]}
29... Rae8 {[%clk 0:01:47.9]} 30. Rxa5 {[%clk 0:01:46.2]} 30... Re2 {[%clk
0:01:47.6]} 31. Rxe2 {[%clk 0:01:43.4]} 31... Rxe2 {[%clk 0:01:47.8]} 32. Rxc5
{[%clk 0:01:43.4]} 32... Bc2 {[%clk 0:01:39.1]} 33. Rc4 {[%clk 0:01:30.6]} 33...
Be4 {[%clk 0:01:36.4]} 34. Kg3 {[%clk 0:01:16.4]} 34... g5 {[%clk 0:01:32.5]}
35. h4 {[%clk 0:01:11.7]} 35... Rxg2+ {[%clk 0:01:30.9]} 0-1

[Event "*** Titled Tuesday Blitz"]
[Site "Chess.com"]
[Date "2020.04.28"]
[Round "4"]
[White "Blagorod"]
[Black "adricalderon8"]
[Result "0-1"]
[WhiteElo "2138"]
[BlackElo "2414"]
[TimeControl "180+1"]
[EndTime "10:39:18 PDT"]
[Termination "adricalderon8 won on time"]

1. e4 {[%clk 0:03:00.9]} 1... c5 {[%clk 0:02:59.2]} 2. Nc3 {[%clk 0:03:00.5]}
2... Nc6 {[%clk 0:02:59.3]} 3. g3 {[%clk 0:03:01]} 3... g6 {[%clk 0:02:59.3]} 4.
Bg2 {[%clk 0:03:01.7]} 4... Bg7 {[%clk 0:03:00]} 5. d3 {[%clk 0:03:02.4]} 5...
Rb8 {[%clk 0:03:00.4]} 6. Be3 {[%clk 0:02:58.1]} 6... b5 {[%clk 0:03:00.8]} 7.
Bxc5 {[%clk 0:02:52.2]} 7... b4 {[%clk 0:03:01]} 8. Nce2 {[%clk 0:02:51.8]} 8...
Bxb2 {[%clk 0:02:49.2]} 9. Rb1 {[%clk 0:02:50.1]} 9... Bg7 {[%clk 0:02:49.3]}
10. Qd2 {[%clk 0:02:24.5]} 10... Qa5 {[%clk 0:02:48.1]} 11. Be3 {[%clk
0:02:06.2]} 11... Qxa2 {[%clk 0:02:44.5]} 12. Qd1 {[%clk 0:02:05.1]} 12... Qa5
{[%clk 0:02:33.8]} 13. Bd2 {[%clk 0:02:02.3]} 13... d6 {[%clk 0:02:30.2]} 14.
Nh3 {[%clk 0:01:58.3]} 14... Nf6 {[%clk 0:02:28.8]} 15. O-O {[%clk 0:01:50.9]}
15... O-O {[%clk 0:02:27.4]} 16. d4 {[%clk 0:01:34.5]} 16... Bxh3 {[%clk
0:02:21.3]} 17. Bxh3 {[%clk 0:01:32.1]} 17... Nxe4 {[%clk 0:02:21.3]} 18. Bg2
{[%clk 0:01:32.8]} 18... d5 {[%clk 0:02:16.9]} 19. Bf4 {[%clk 0:01:21.8]} 19...
Rbc8 {[%clk 0:02:15.3]} 20. h4 {[%clk 0:01:10.5]} 20... Qb6 {[%clk 0:02:09.4]}
21. c3 {[%clk 0:00:58.5]} 21... a5 {[%clk 0:02:07.3]} 22. cxb4 {[%clk
0:00:53.4]} 22... axb4 {[%clk 0:02:08.2]} 23. h5 {[%clk 0:00:50.4]} 23... e6
{[%clk 0:02:02.5]} 24. h6 {[%clk 0:00:47.1]} 24... Bf6 {[%clk 0:02:01.7]} 25. f3
{[%clk 0:00:34.2]} 25... Nxd4 {[%clk 0:01:55.5]} 26. Kh2 {[%clk 0:00:29.3]}
26... Nxe2 {[%clk 0:01:54.4]} 27. Qxe2 {[%clk 0:00:28.7]} 27... Nc3 {[%clk
0:01:54.6]} 28. Qe1 {[%clk 0:00:18.6]} 28... Nxb1 {[%clk 0:01:54.4]} 29. Qxb1
{[%clk 0:00:19.2]} 29... b3 {[%clk 0:01:54.6]} 30. g4 {[%clk 0:00:16.3]} 30...
b2 {[%clk 0:01:54.2]} 31. g5 {[%clk 0:00:16.7]} 31... Qd4 {[%clk 0:01:53.1]} 32.
Kg3 {[%clk 0:00:13.3]} 32... Be5 {[%clk 0:01:52.7]} 33. Bxe5 {[%clk 0:00:12.2]}
33... Qxe5+ {[%clk 0:01:53.6]} 34. f4 {[%clk 0:00:12.7]} 34... Qf5 {[%clk
0:01:52.7]} 35. Qxb2 {[%clk 0:00:10.3]} 35... f6 {[%clk 0:01:49.6]} 36. gxf6
{[%clk 0:00:07]} 36... Qxf6 {[%clk 0:01:48.3]} 37. Qb7 {[%clk 0:00:05.5]} 37...
Rc3+ {[%clk 0:01:41.3]} 38. Rf3 {[%clk 0:00:05.2]} 38... Rxf3+ {[%clk
0:01:40.7]} 39. Bxf3 {[%clk 0:00:05.6]} 39... Qxf4+ {[%clk 0:01:40.9]} 40. Kg2
{[%clk 0:00:02.9]} 40... Qxf3+ {[%clk 0:01:41.1]} 41. Kg1 {[%clk 0:00:02.8]}
41... Qe3+ {[%clk 0:01:40.4]} 0-1

[Event "*** Titled Tuesday Blitz"]
[Site "Chess.com"]
[Date "2020.04.28"]
[Round "4"]
[White "Jeffinho023"]
[Black "Grandelicious"]
[Result "0-1"]
[WhiteElo "2555"]
[BlackElo "2780"]
[TimeControl "180+1"]
[EndTime "10:39:20 PDT"]
[Termination "Grandelicious won by resignation"]

1. d4 {[%clk 0:03:00.9]} 1... Nf6 {[%clk 0:02:59.2]} 2. Nf3 {[%clk 0:03:00.8]}
2... e6 {[%clk 0:02:56.7]} 3. Bf4 {[%clk 0:03:00.3]} 3... c5 {[%clk 0:02:55.2]}
4. c3 {[%clk 0:03:00.3]} 4... Nc6 {[%clk 0:02:54.5]} 5. e3 {[%clk 0:03:00.2]}
5... b6 {[%clk 0:02:54.1]} 6. Nbd2 {[%clk 0:02:59.9]} 6... cxd4 {[%clk
0:02:54.1]} 7. exd4 {[%clk 0:02:59.7]} 7... Bb7 {[%clk 0:02:54.6]} 8. h3 {[%clk
0:02:58.5]} 8... Be7 {[%clk 0:02:54.6]} 9. Bd3 {[%clk 0:02:58.2]} 9... O-O
{[%clk 0:02:53.3]} 10. O-O {[%clk 0:02:58.2]} 10... d6 {[%clk 0:02:53.8]} 11.
Re1 {[%clk 0:02:58]} 11... a6 {[%clk 0:02:53.9]} 12. a4 {[%clk 0:02:57.9]} 12...
Nd5 {[%clk 0:02:48.2]} 13. Bh2 {[%clk 0:02:56.4]} 13... g6 {[%clk 0:02:48.3]}
14. Nc4 {[%clk 0:02:48.1]} 14... Re8 {[%clk 0:02:46.5]} 15. Ne3 {[%clk
0:02:46.5]} 15... Nxe3 {[%clk 0:02:45.4]} 16. Rxe3 {[%clk 0:02:45.9]} 16... Bf8
{[%clk 0:02:42]} 17. Re1 {[%clk 0:02:34.3]} 17... Ne7 {[%clk 0:02:37.2]} 18. Be4
{[%clk 0:02:33.4]} 18... Bxe4 {[%clk 0:02:34.2]} 19. Rxe4 {[%clk 0:02:34.3]}
19... b5 {[%clk 0:02:35.1]} 20. axb5 {[%clk 0:02:32.7]} 20... axb5 {[%clk
0:02:36]} 21. Rxa8 {[%clk 0:02:29.8]} 21... Qxa8 {[%clk 0:02:36.9]} 22. Qd3
{[%clk 0:02:29.7]} 22... Nd5 {[%clk 0:02:26.5]} 23. Re1 {[%clk 0:02:24.9]} 23...
Rb8 {[%clk 0:02:22.3]} 24. Nd2 {[%clk 0:02:12.6]} 24... Qa2 {[%clk 0:02:14.6]}
25. Qb1 {[%clk 0:02:12.1]} 25... Ra8 {[%clk 0:02:12.3]} 26. Ne4 {[%clk
0:02:10.5]} 26... Qxb1 {[%clk 0:02:07.4]} 27. Rxb1 {[%clk 0:02:10.1]} 27... Ra6
{[%clk 0:02:07.1]} 28. Bg3 {[%clk 0:02:04.5]} 28... Be7 {[%clk 0:02:04.7]} 29.
Rc1 {[%clk 0:01:55.6]} 29... f5 {[%clk 0:02:02.1]} 30. Nd2 {[%clk 0:01:52.3]}
30... Bg5 {[%clk 0:01:53.1]} 31. Rd1 {[%clk 0:01:28.1]} 31... Bxd2 {[%clk
0:01:38.3]} 32. Rxd2 {[%clk 0:01:26.7]} 32... f4 {[%clk 0:01:38.9]} 33. Bh4
{[%clk 0:01:24.7]} 33... h6 {[%clk 0:01:35.8]} 34. f3 {[%clk 0:01:12.2]} 34...
Ra1+ {[%clk 0:01:35.1]} 35. Kh2 {[%clk 0:00:12.7]} 35... Ne3 {[%clk 0:01:34.4]}
36. Re2 {[%clk 0:00:05.1]} 36... Nf1+ {[%clk 0:01:32.6]} 37. Kg1 {[%clk
0:00:03.7]} 37... Ng3+ {[%clk 0:01:33.3]} 0-1

[Event "*** Titled Tuesday Blitz"]
[Site "Chess.com"]
[Date "2020.04.28"]
[Round "4"]
[White "Zurability"]
[Black "RaunakSadhwani2005"]
[Result "0-1"]
[WhiteElo "2708"]
[BlackElo "2893"]
[TimeControl "180+1"]
[EndTime "10:39:21 PDT"]
[Termination "RaunakSadhwani2005 won by resignation"]

1. d4 {[%clk 0:03:00.9]} 1... Nf6 {[%clk 0:02:58.5]} 2. c4 {[%clk 0:03:00.7]}
2... Nc6 {[%clk 0:02:54.6]} 3. Nf3 {[%clk 0:02:59.5]} 3... e6 {[%clk 0:02:54.1]}
4. a3 {[%clk 0:02:59.8]} 4... d6 {[%clk 0:02:54.2]} 5. Nc3 {[%clk 0:02:59.4]}
5... g6 {[%clk 0:02:54.5]} 6. e4 {[%clk 0:02:59.4]} 6... Bg7 {[%clk 0:02:54.8]}
7. Be2 {[%clk 0:02:57.8]} 7... O-O {[%clk 0:02:55.2]} 8. O-O {[%clk 0:02:57.8]}
8... e5 {[%clk 0:02:52.1]} 9. d5 {[%clk 0:02:57.9]} 9... Ne7 {[%clk 0:02:51.8]}
10. b4 {[%clk 0:02:56.5]} 10... Nd7 {[%clk 0:02:51.9]} 11. Ne1 {[%clk
0:02:45.3]} 11... f5 {[%clk 0:02:51.2]} 12. Nd3 {[%clk 0:02:34.1]} 12... Nf6
{[%clk 0:02:43]} 13. f3 {[%clk 0:02:31.2]} 13... f4 {[%clk 0:02:43.1]} 14. Bd2
{[%clk 0:02:24.6]} 14... g5 {[%clk 0:02:42.7]} 15. Be1 {[%clk 0:02:23.8]} 15...
h5 {[%clk 0:02:41.8]} 16. c5 {[%clk 0:02:23.7]} 16... Ng6 {[%clk 0:02:40.2]} 17.
h3 {[%clk 0:02:12.2]} 17... Rf7 {[%clk 0:02:19.1]} 18. Rc1 {[%clk 0:02:06.3]}
18... Bf8 {[%clk 0:02:18.6]} 19. Nf2 {[%clk 0:01:28.6]} 19... Rg7 {[%clk
0:02:15.4]} 20. cxd6 {[%clk 0:01:28.1]} 20... Bxd6 {[%clk 0:02:10.1]} 21. Nb5
{[%clk 0:01:26]} 21... Nh8 {[%clk 0:02:07.3]} 22. Nxd6 {[%clk 0:01:21.3]} 22...
cxd6 {[%clk 0:02:07.4]} 23. Bd2 {[%clk 0:01:13.7]} 23... Nf7 {[%clk 0:02:06.1]}
24. Rc3 {[%clk 0:01:14.2]} 24... Nh6 {[%clk 0:02:04.8]} 25. Qc2 {[%clk
0:01:12.7]} 25... g4 {[%clk 0:02:03.9]} 26. fxg4 {[%clk 0:01:06.8]} 26... hxg4
{[%clk 0:02:03.2]} 27. Rc1 {[%clk 0:01:06.2]} 27... Bd7 {[%clk 0:02:02.9]} 28.
hxg4 {[%clk 0:01:02.7]} 28... Nfxg4 {[%clk 0:01:55.8]} 29. Nxg4 {[%clk
0:00:59.1]} 29... Nxg4 {[%clk 0:01:13.6]} 30. Qd1 {[%clk 0:00:51.1]} 30... Qg5
{[%clk 0:01:10.2]} 31. Bf3 {[%clk 0:00:42.8]} 31... Qh4 {[%clk 0:01:05]} 32. Qe1
{[%clk 0:00:36.1]} 32... Qh2+ {[%clk 0:01:02.4]} 33. Kf1 {[%clk 0:00:36.7]}
33... Bb5+ {[%clk 0:01:01.2]} 34. Rc4 {[%clk 0:00:32.1]} 34... Rc8 {[%clk
0:01:00.1]} 0-1

[Event "*** Titled Tuesday Blitz"]
[Site "Chess.com"]
[Date "2020.04.28"]
[Round "4"]
[White "MariaFominykh"]
[Black "MiroVlasenko"]
[Result "0-1"]
[WhiteElo "2384"]
[BlackElo "2596"]
[TimeControl "180+1"]
[EndTime "10:39:21 PDT"]
[Termination "MiroVlasenko won by checkmate"]

1. d4 {[%clk 0:02:58.2]} 1... Nf6 {[%clk 0:02:59.5]} 2. c4 {[%clk 0:02:58.1]}
2... e6 {[%clk 0:03:00]} 3. Nf3 {[%clk 0:02:58]} 3... b6 {[%clk 0:02:59.8]} 4.
g3 {[%clk 0:02:57.3]} 4... Ba6 {[%clk 0:03:00]} 5. Nbd2 {[%clk 0:02:55.1]} 5...
d5 {[%clk 0:02:59.5]} 6. cxd5 {[%clk 0:02:49.1]} 6... exd5 {[%clk 0:02:59.4]} 7.
Bg2 {[%clk 0:02:48.9]} 7... Bd6 {[%clk 0:02:59.2]} 8. O-O {[%clk 0:02:48.3]}
8... O-O {[%clk 0:02:58.9]} 9. Re1 {[%clk 0:02:48]} 9... Re8 {[%clk 0:02:58]}
10. b3 {[%clk 0:02:33.5]} 10... Ne4 {[%clk 0:02:57.4]} 11. Bb2 {[%clk
0:02:28.4]} 11... Nd7 {[%clk 0:02:57.2]} 12. Nf1 {[%clk 0:02:18.6]} 12... Bb4
{[%clk 0:02:49.9]} 13. N3d2 {[%clk 0:02:13.5]} 13... Qf6 {[%clk 0:02:43.5]} 14.
Bxe4 {[%clk 0:01:52.4]} 14... dxe4 {[%clk 0:02:43.3]} 15. Ne3 {[%clk 0:01:45.9]}
15... Rad8 {[%clk 0:02:35.3]} 16. Qc2 {[%clk 0:01:40.3]} 16... Qg6 {[%clk
0:02:18.2]} 17. a3 {[%clk 0:01:32.1]} 17... Bd6 {[%clk 0:02:16.1]} 18. Ndc4
{[%clk 0:01:29.4]} 18... Bf4 {[%clk 0:02:15.7]} 19. Nd5 {[%clk 0:01:19.7]} 19...
Bd6 {[%clk 0:01:57.2]} 20. Nxd6 {[%clk 0:00:45.6]} 20... cxd6 {[%clk 0:01:57]}
21. Nf4 {[%clk 0:00:26.8]} 21... Qh6 {[%clk 0:01:49.7]} 22. Qc7 {[%clk
0:00:25.4]} 22... e3 {[%clk 0:01:47.3]} 23. fxe3 {[%clk 0:00:23.1]} 23... Nf6
{[%clk 0:01:42.1]} 24. Qxa7 {[%clk 0:00:19.7]} 24... Ng4 {[%clk 0:01:34.8]} 25.
h3 {[%clk 0:00:19.5]} 25... Rxe3 {[%clk 0:01:34.3]} 26. Kg2 {[%clk 0:00:10.7]}
26... Nf6 {[%clk 0:01:17.3]} 27. Qxa6 {[%clk 0:00:10.5]} 27... Qg5 {[%clk
0:01:11.8]} 28. g4 {[%clk 0:00:08.1]} 28... Qxf4 {[%clk 0:01:10.6]} 29. Rh1
{[%clk 0:00:03.6]} 29... Rg3+ {[%clk 0:01:08.2]} 30. Kh2 {[%clk 0:00:03.1]}
30... Qf2# {[%clk 0:01:09.1]} 0-1

[Event "*** Titled Tuesday Blitz"]
[Site "Chess.com"]
[Date "2020.04.28"]
[Round "4"]
[White "aa175"]
[Black "ZAbdumalik"]
[Result "1-0"]
[WhiteElo "2463"]
[BlackElo "2635"]
[TimeControl "180+1"]
[EndTime "10:39:25 PDT"]
[Termination "aa175 won by resignation"]

1. d4 {[%clk 0:03:00.9]} 1... Nf6 {[%clk 0:02:59.6]} 2. Bf4 {[%clk 0:03:00.4]}
2... g6 {[%clk 0:02:59.3]} 3. e3 {[%clk 0:03:01]} 3... Bg7 {[%clk 0:02:58.6]} 4.
Nf3 {[%clk 0:03:01.6]} 4... d6 {[%clk 0:02:56.7]} 5. Be2 {[%clk 0:03:02]} 5...
O-O {[%clk 0:02:56.9]} 6. O-O {[%clk 0:03:02.7]} 6... Nbd7 {[%clk 0:02:57.4]} 7.
c4 {[%clk 0:03:02.7]} 7... Nh5 {[%clk 0:02:56.3]} 8. Bg5 {[%clk 0:03:02.5]} 8...
h6 {[%clk 0:02:54.4]} 9. Bh4 {[%clk 0:03:02.9]} 9... g5 {[%clk 0:02:54.7]} 10.
Nfd2 {[%clk 0:03:03.1]} 10... Nhf6 {[%clk 0:02:51.7]} 11. Bg3 {[%clk 0:03:03.2]}
11... c5 {[%clk 0:02:52]} 12. Nc3 {[%clk 0:02:59.4]} 12... b6 {[%clk 0:02:50.4]}
13. Bf3 {[%clk 0:02:58.6]} 13... Rb8 {[%clk 0:02:50.6]} 14. a3 {[%clk
0:02:54.2]} 14... a6 {[%clk 0:02:48.8]} 15. b4 {[%clk 0:02:50.9]} 15... Ne8
{[%clk 0:02:44.1]} 16. Nb3 {[%clk 0:02:39.8]} 16... Nc7 {[%clk 0:02:41.9]} 17.
Qd3 {[%clk 0:02:32.7]} 17... e5 {[%clk 0:02:35.8]} 18. dxc5 {[%clk 0:02:19.5]}
18... dxc5 {[%clk 0:02:34.4]} 19. Nd5 {[%clk 0:02:11.7]} 19... Ne6 {[%clk
0:02:31.3]} 20. Rfd1 {[%clk 0:01:59.9]} 20... f5 {[%clk 0:02:26.4]} 21. h3
{[%clk 0:01:45.7]} 21... e4 {[%clk 0:02:16.6]} 22. Bxe4 {[%clk 0:01:44]} 22...
fxe4 {[%clk 0:02:16.6]} 23. Qxe4 {[%clk 0:01:44.9]} 23... Qe8 {[%clk 0:02:11.9]}
24. Bxb8 {[%clk 0:01:42.3]} 24... Nxb8 {[%clk 0:02:12]} 25. Rac1 {[%clk
0:01:16.2]} 25... Qf7 {[%clk 0:02:11.4]} 26. Nxb6 {[%clk 0:01:12]} 26... Bb7
{[%clk 0:02:05.4]} 27. Qc2 {[%clk 0:01:06.1]} 27... cxb4 {[%clk 0:01:48.6]} 28.
axb4 {[%clk 0:01:06.1]} 28... g4 {[%clk 0:01:46.6]} 29. hxg4 {[%clk 0:01:01.3]}
29... Ng5 {[%clk 0:01:46.8]} 30. Nd5 {[%clk 0:00:59.6]} 30... Nc6 {[%clk
0:01:45.2]} 31. Nc5 {[%clk 0:00:55.9]} 31... Bc8 {[%clk 0:01:45]} 32. b5 {[%clk
0:00:48.5]} 32... axb5 {[%clk 0:01:42.1]} 33. cxb5 {[%clk 0:00:49.4]} 33... Ne5
{[%clk 0:01:42.2]} 34. f4 {[%clk 0:00:39.7]} 34... Bxg4 {[%clk 0:01:40.1]} 35.
fxg5 {[%clk 0:00:34.5]} 35... Bxd1 {[%clk 0:01:39.2]} 36. Rxd1 {[%clk
0:00:23.8]} 36... hxg5 {[%clk 0:01:37.8]} 37. Ne4 {[%clk 0:00:21.5]} 37... Ng4
{[%clk 0:01:28.3]} 38. Nxg5 {[%clk 0:00:13.2]} 38... Qh5 {[%clk 0:01:28.4]} 39.
Ne7+ {[%clk 0:00:13.5]} 39... Kh8 {[%clk 0:01:28.1]} 40. Ng6+ {[%clk 0:00:11.2]}
40... Kg8 {[%clk 0:01:25.4]} 41. Qc4+ {[%clk 0:00:11.1]} 1-0

[Event "*** Titled Tuesday Blitz"]
[Site "Chess.com"]
[Date "2020.04.28"]
[Round "4"]
[White "Mizner"]
[Black "Caterpiller35"]
[Result "1-0"]
[WhiteElo "2481"]
[BlackElo "2300"]
[TimeControl "180+1"]
[EndTime "10:39:25 PDT"]
[Termination "Mizner won by resignation"]

1. e4 {[%clk 0:03:00.9]} 1... c5 {[%clk 0:02:59.8]} 2. Nf3 {[%clk 0:02:59.7]}
2... Nc6 {[%clk 0:02:59.3]} 3. d4 {[%clk 0:02:58.6]} 3... cxd4 {[%clk
0:03:00.2]} 4. Nxd4 {[%clk 0:02:58.4]} 4... e5 {[%clk 0:03:00.9]} 5. Nb5 {[%clk
0:02:58.3]} 5... d6 {[%clk 0:03:01]} 6. c4 {[%clk 0:02:57.7]} 6... Be7 {[%clk
0:03:01.1]} 7. N5c3 {[%clk 0:02:57.4]} 7... Nf6 {[%clk 0:02:58.7]} 8. Bd3 {[%clk
0:02:57.2]} 8... O-O {[%clk 0:02:58]} 9. O-O {[%clk 0:02:57.1]} 9... Be6 {[%clk
0:02:58.3]} 10. Nd5 {[%clk 0:02:53.9]} 10... Rc8 {[%clk 0:02:53.2]} 11. Nbc3
{[%clk 0:02:53.2]} 11... Nd4 {[%clk 0:02:53.4]} 12. Nxe7+ {[%clk 0:02:36]} 12...
Qxe7 {[%clk 0:02:53.2]} 13. b3 {[%clk 0:02:35.7]} 13... a6 {[%clk 0:02:38.4]}
14. Ne2 {[%clk 0:02:23.6]} 14... Bg4 {[%clk 0:02:20.3]} 15. f3 {[%clk
0:02:21.6]} 15... Nxe2+ {[%clk 0:02:19.7]} 16. Qxe2 {[%clk 0:02:21.3]} 16... Be6
{[%clk 0:02:19.2]} 17. Rd1 {[%clk 0:02:14]} 17... Rfd8 {[%clk 0:02:11.5]} 18.
Ba3 {[%clk 0:02:04.8]} 18... Rc6 {[%clk 0:02:11.3]} 19. Rd2 {[%clk 0:02:00.6]}
19... Nh5 {[%clk 0:02:11.1]} 20. Qe3 {[%clk 0:01:56.8]} 20... g6 {[%clk
0:02:02]} 21. Rad1 {[%clk 0:01:55.7]} 21... Nf4 {[%clk 0:01:56.6]} 22. Bf1
{[%clk 0:01:55.4]} 22... Qg5 {[%clk 0:01:45.3]} 23. Kh1 {[%clk 0:01:55.5]} 23...
Qe7 {[%clk 0:01:30.5]} 24. c5 {[%clk 0:01:41.4]} 24... d5 {[%clk 0:01:30.5]} 25.
exd5 {[%clk 0:01:40.2]} 25... Rxd5 {[%clk 0:01:18.5]} 26. Rxd5 {[%clk
0:01:38.9]} 26... Nxd5 {[%clk 0:00:55.5]} 27. Qxe5 {[%clk 0:01:37.6]} 27... Rxc5
{[%clk 0:00:47.1]} 28. Bxc5 {[%clk 0:00:59.1]} 28... Qxc5 {[%clk 0:00:48]} 29.
Bc4 {[%clk 0:00:59.6]} 29... Qe3 {[%clk 0:00:31.1]} 30. Qxe3 {[%clk 0:00:56]}
30... Nxe3 {[%clk 0:00:30.2]} 31. Rd8+ {[%clk 0:00:55.8]} 31... Kg7 {[%clk
0:00:30.5]} 32. Bxe6 {[%clk 0:00:56.4]} 32... fxe6 {[%clk 0:00:31.4]} 33. Rd7+
{[%clk 0:00:56.5]} 1-0

[Event "*** Titled Tuesday Blitz"]
[Site "Chess.com"]
[Date "2020.04.28"]
[Round "4"]
[White "WinningButNotReally"]
[Black "EnergeticHay"]
[Result "0-1"]
[WhiteElo "2408"]
[BlackElo "2219"]
[TimeControl "180+1"]
[EndTime "10:39:25 PDT"]
[Termination "EnergeticHay won by checkmate"]

1. Nf3 {[%clk 0:03:00.9]} 1... Nf6 {[%clk 0:02:59.9]} 2. c4 {[%clk 0:02:56.2]}
2... g6 {[%clk 0:03:00.3]} 3. g3 {[%clk 0:02:55.6]} 3... Bg7 {[%clk 0:03:00.7]}
4. Bg2 {[%clk 0:02:56]} 4... d6 {[%clk 0:03:01.4]} 5. d4 {[%clk 0:02:55.2]} 5...
O-O {[%clk 0:03:02.1]} 6. O-O {[%clk 0:02:52.9]} 6... c5 {[%clk 0:03:02.5]} 7.
Nc3 {[%clk 0:02:53.2]} 7... Nc6 {[%clk 0:03:02]} 8. d5 {[%clk 0:02:48.5]} 8...
Na5 {[%clk 0:03:02.2]} 9. Nd2 {[%clk 0:02:47.6]} 9... a6 {[%clk 0:03:02.3]} 10.
e4 {[%clk 0:02:46.9]} 10... Rb8 {[%clk 0:03:01.9]} 11. a4 {[%clk 0:02:41.8]}
11... Bd7 {[%clk 0:02:45.5]} 12. Qe2 {[%clk 0:02:25.6]} 12... Qc7 {[%clk
0:02:37.8]} 13. b3 {[%clk 0:02:20.4]} 13... b5 {[%clk 0:02:21.7]} 14. axb5
{[%clk 0:02:04.9]} 14... axb5 {[%clk 0:02:21]} 15. cxb5 {[%clk 0:02:05.1]} 15...
Ng4 {[%clk 0:01:40.1]} 16. Bb2 {[%clk 0:01:50.4]} 16... Bh6 {[%clk 0:01:32.7]}
17. Nc4 {[%clk 0:01:36.7]} 17... Nxb3 {[%clk 0:01:29.1]} 18. b6 {[%clk
0:01:36.5]} 18... Rxb6 {[%clk 0:01:24.2]} 19. Nxb6 {[%clk 0:01:16.4]} 19... Qxb6
{[%clk 0:01:22]} 20. Ra6 {[%clk 0:01:07.8]} 20... Qb4 {[%clk 0:01:01.9]} 21. Rb1
{[%clk 0:00:25]} 21... Nd2 {[%clk 0:00:46.9]} 22. Ra7 {[%clk 0:00:16.3]} 22...
Nxb1 {[%clk 0:00:41.7]} 23. Nxb1 {[%clk 0:00:16.3]} 23... Bb5 {[%clk 0:00:37.9]}
24. Qc2 {[%clk 0:00:16.4]} 24... Qe1+ {[%clk 0:00:35.2]} 25. Bf1 {[%clk
0:00:13.9]} 25... Qxf1# {[%clk 0:00:35.3]} 0-1